Cogmind - Beta 15 @@@ ROGUE MODE // 2025.08.07 @ 14:39:18 Player: JuustuToug Result: Destroyed by AG-E59(R) with Subdweller Machine Gun Performance ------------- Evolutions (0) 0 Regions Visited (2) 400 Robots Destroyed (18) 90 Value Destroyed (602) 602 Prototype IDs (13) 260 Alien Tech Used (0) 0 Bonus (0) 0 TOTAL SCORE: 1352 Bonus ------- None Cogmind --------- Core Integrity 0/250 Matter 249/300 Energy 181/200 System Corruption 0% Temperature Cool (0) Movement Treading (240) Ox1 Location -10/Subcaves Parts ------- > --- POWER (1) -------- Subdweller Power Source > --- PROPULSION (2) --- Light Treads > --- UTILITY (2) ------ Small Storage Unit Makeshift Light Armor Plating > --- WEAPON (2) ------- Subdweller Laser Subdweller Machine Gun > --- INVENTORY (8) ---- Ion Engine Aluminum Leg Aluminum Leg Improved Heat Sink Sensor Array Grenade Launcher Datajack Mining Claw Peak State ------------ > --- POWER ------------ Subdweller Power Source > --- PROPULSION ------- Light Treads Light Treads > --- UTILITY ---------- Small Storage Unit Makeshift Light Armor Plating > --- WEAPON ----------- Subdweller Laser Subdweller Machine Gun > --- INVENTORY -------- Ion Engine Aluminum Leg Aluminum Leg Improved Heat Sink Sensor Array Grenade Launcher Datajack Mining Claw [Rating: 14] Favorites ----------- Power Subdweller Power Source Engine Subdweller Power Source Propulsion Light Treads Treads Light Treads Leg Aluminum Leg Utility Small Storage Unit Device Subdweller Optics Storage Small Storage Unit Protection Light Armor Plating Weapon Subdweller Laser Energy Gun Subdweller Laser Ballistic Gun Assault Rifle Launcher Grenade Launcher Slashing Weapon Mining Claw Special Melee Weapon Datajack Build | -11 -10 -10 ------- Run | Yrd Mat Sub Slots Evolved . | . . . Power . | . . . Propulsion . | . . . Utility . | . . . Weapon . | . . . Parts Attached 26 | 7 5 14 Power 4 | 1 . 3 Engine 4 | 1 . 3 Core . | . . . Reactor . | . . . Propulsion 6 | 3 2 1 Treads 2 | 1 . 1 Leg 4 | 2 2 . Wheel . | . . . Hover . | . . . Flight . | . . . Utility 7 | 1 2 4 Device 4 | . 2 2 Storage 1 | 1 . . Processor . | . . . Hackware . | . . . Protection 2 | . . 2 Artifact . | . . . Weapon 9 | 2 1 6 Energy Gun 4 | 1 1 2 Energy Cannon . | . . . Ballistic Gun 2 | 1 . 1 Ballistic Cannon . | . . . Launcher 1 | . . 1 Special Weapon . | . . . Impact Weapon . | . . . Slashing Weapon 1 | . . 1 Piercing Weapon . | . . . Special Melee Weapon 1 | . . 1 Unidentified Prototypes . | . . . Parts Lost 4 | . 1 3 Power . | . . . Propulsion 2 | . 1 1 Utility 1 | . . 1 Weapon 1 | . . 1 Highest Loss Streak 1 | . 1 1 To Critical Strikes . | . . . Average Backups 7 | 2 7 7 Power . | . 1 1 Propulsion 2 | 1 2 1 Utility 1 | . . 2 Weapon 2 | 1 2 2 Tool/Special . | . . . Unused Backups 6 | . 4 2 Power 2 | . 1 1 Propulsion 1 | . . 1 Utility 1 | . 1 . Weapon 2 | . 2 . Tool/Special . | . . . Average Slot Usage (%) 97 | . 92 99 Engine 14 | . 14 14 Treads 19 | . . 27 Leg 8 | . 28 . Device 7 | . 6 7 Storage 14 | . 14 14 Protection 4 | . . 6 Energy Gun 14 | . 14 15 Ballistic Gun 11 | . 14 10 Peak Build Rating 14 | 6 10 14 Average Rating 10 | 4 7 11 On Entrance 5 | . 6 9 Naked Turns . | . . . Heaviest Build 22 | 14 16 22 Greatest Support 40 | 20 20 40 Greatest Overweight (x) . | . . . Average Overweight (x) . | . . . Largest Inventory Capacity 8 | 8 8 8 Average Capacity 7 | 6 8 8 Most Carried 8 | 5 8 8 Average Carried 7 | 2 7 7 Final Capacity 8 | 8 8 8 Final Carried 8 | 4 8 8 Class Distribution -------------------- 93% | Mutant 6% | Scavenger-Mutant Dominant Class ---------------- Mutant | -10/Materials Mutant | -10/Subcaves Resources | -11 -10 -10 ----------- Run | Yrd Mat Sub Matter Collected 704 | 182 252 270 Remotely . | . . . Salvage Created 672 | . 311 361 Parts 42 | . 18 24 Haulers Intercepted . | . . . Recyclers Shooed . | . . . Parts Field Recycled . | . . . Retrieved Matter . | . . . Parts Self-Destructed 11 | . . 11 Prevented . | . . . Kills | -11 -10 -10 ------- Run | Yrd Mat Sub Combat Hostiles Destroyed 17 | . 9 8 Guns 17 | . 9 8 Classes Destroyed 5 | . 3 2 Watcher 1 | . 1 . Swarmer 3 | . 3 . Grunt 8 | . 6 2 Sentry 1 | . . 1 Subdweller 5 | . . 5 Best Kill Streak 2 | . 2 2 Combat Bots Only 2 | . 2 2 Max Kills in Single Turn 1 | . 1 1 Gunslinging . | . . . Exploded . | . . . Melee . | . . . Uniques/NPCs Destroyed . | . . . Combat | -11 -10 -10 -------- Run | Yrd Mat Sub Hostile Shots Fired 100 | . 48 52 Missed 27 | . 17 10 Hits 73 | . 31 42 Projectile 73 | . 31 42 Critical Strikes 3 | . 2 1 Damage Taken 1086 | . 351 735 Core 252 | . 63 189 Absorbed by Shields . | . . . Core Remaining (%) 100 | 100 . . Volleys Fired 74 | . 37 37 Largest 2 | . 2 2 Hottest 125 | . 85 125 Shots Fired 144 | . 74 70 Gun 144 | . 74 70 Cannon . | . . . Launcher . | . . . Special . | . . . Kinetic 66 | . 37 29 Thermal 78 | . 37 41 Explosive . | . . . Electromagnetic . | . . . Robot Hit Streak 7 | . 6 7 Robot Miss Streak 3 | . 3 3 Penetration Max . | . . . Secondary Targets . | . . . Shots Hit Robots 97 | . 46 51 Core Hits 33 | . 17 16 Critical Kills 1 | . . 1 Critical Parts Destroyed . | . . . Critical Strikes 3 | . 1 2 Burn 2 | . 1 1 Destroy 1 | . . 1 Melee Attacks 17 | . . 17 Impact . | . . . Slashing 15 | . . 15 Piercing . | . . . Sneak Attacks 2 | . . 2 Combat Hostiles . | . . . Follow-up Attacks . | . . . Damage Inflicted 1391 | . 593 798 Guns 1391 | . 593 798 Cannons . | . . . Explosions . | . . . Melee . | . . . Ramming . | . . . Kinetic 558 | . 278 280 Thermal 833 | . 315 518 Explosive . | . . . Electromagnetic . | . . . Impact . | . . . Slashing . | . . . Piercing . | . . . Highest Corruption . | . . . Average Corruption . | . . . Corruption Purged . | . . . Corruption Blocked . | . . . Overload Shots . | . . . Overflow Damage . | . . . Projectiles . | . . . Explosions . | . . . Melee . | . . . Knockbacks . | . . . Impact . | . . . Kinetic . | . . . Secondary . | . . . Self-Inflicted Damage . | . . . Shots . | . . . Rammed . | . . . Targets Rammed . | . . . Kicked . | . . . Crushed . | . . . Highest Temperature 72 | . 69 72 Average Temperature 24 | . 22 37 Received Heat Transfer 414 | . 195 219 Siege Activations . | . . . Martial Activations . | . . . Shielding Activations . | . . . Robots Disrupted . | . . . Combat Hostiles . | . . . Robots Corrupted . | . . . Combat Hostiles . | . . . Parts Fried . | . . . Impact Corruptions . | . . . Robots Melted . | . . . Combat Hostiles . | . . . Parts Melted 3 | . 1 2 Heat Transferred 1953 | . 925 1028 Parts Sabotaged . | . . . Parts Stolen . | . . . Parts Stripped . | . . . Power Chain Reactions . | . . . Alert | -11 -10 -10 ------- Run | Yrd Mat Sub Maximum Alert Level . | . . . Low Security (%) 100 | 100 100 . Level 1 . | . . . Level 2 . | . . . Level 3 . | . . . Level 4 . | . . . Level 5 . | . . . High Security . | . . . Max Security . | . . . Peak Influence 131 | . 131 . Initial . | . . . Average 49 | . 53 . Influence Increases 368 | . 298 70 Destroy 0b10 Robot/C 240 | . 180 60 Destroy 0b10 Robot/NC 5 | . 5 . Destroy Leader 52 | . 42 10 Successful Hack 25 | . 25 . Destroy Structure 1 | . 1 . Lose Combat Pursuer 45 | . 45 . Influence Decreases 368 | . 238 130 Entered New Map 29 | . . 29 Time Decay 329 | . 228 101 Lost Part 10 | . 10 . Squads Dispatched 1 | . 1 . Investigation 1 | . 1 . Extermination . | . . . Reinforcement . | . . . Assault . | . . . Garrison . | . . . Intercept . | . . . Searches Triggered . | . . . Construction Impeded . | . . . Haulers Reinforced . | . . . Active Scanning Responses . | . . . Cargo Convoy Interrupts . | . . . Stealth | -11 -10 -10 --------- Run | Yrd Mat Sub Distress Signals . | . . . Communications Jammed . | . . . Distress Signals . | . . . Times Spotted 26 | . 16 10 Peak Tracking Total 3 | . 3 2 Tactical Retreats 3 | . 3 . Traps | -11 -10 -10 ------- Run | Yrd Mat Sub Traps Triggered 1 | . 1 . Indirectly . | . . . Trap Hack Attempts . | . . . Triggered . | . . . Disarmed . | . . . Reprogrammed . | . . . Reused . | . . . Traps Extracted . | . . . Installed . | . . . Triggered . | . . . Machines | -11 -10 -10 ---------- Run | Yrd Mat Sub Machines Disabled . | . . . Max in Single Turn . | . . . Machines Repaired . | . . . Machines Dismantled . | . . . Machines Sabotaged . | . . . Overloaded Fab Kills . | . . . Hacking | -11 -10 -10 --------- Run | Yrd Mat Sub Machines Accessed 10 | . 6 4 Terminals 5 | . 5 . Fabricators . | . . . Repair Stations . | . . . Recycling Units 1 | . 1 . Scanalyzers . | . . . Garrison Access . | . . . Total Hacks 30 | . 23 7 Successful 22 | . 15 7 Failed 8 | . 8 . Catastrophic . | . . . Database Lockouts . | . . . Manual 4 | . 4 . Terminals 21 | . 21 . Fabricators . | . . . Repair Stations . | . . . Recycling Units 2 | . 2 . Scanalyzers . | . . . Garrison Access . | . . . Terminal Hacks 20 | . 13 7 Record 4 | . . 4 Robot Analysis 1 | . 1 . Prototype ID Bank 1 | . 1 . Open Door 1 | . . 1 Emergency Access Points 1 | . 1 . Terminal Index 1 | . 1 . Alert Level 1 | . 1 . Locate Traps 2 | . 2 . Dispatch Records 1 | . 1 . Transport Status 1 | . 1 . Zone Layout 4 | . 4 . Proto ID Catalog 1 | . . 1 Release Object 1 | . . 1 Fabricator Hacks . | . . . Repair Station Hacks . | . . . Recycling Unit Hacks 2 | . 2 . Report Inventory 1 | . 1 . Retrieve Matter 1 | . 1 . Scanalyzer . | . . . Garrison Access Hacks . | . . . Unauthorized Hacks . | . . . Terminals . | . . . Fabricators . | . . . Repair Stations . | . . . Recycling Units . | . . . Scanalyzers . | . . . Garrison Access . | . . . Data Cores Recovered . | . . . Used . | . . . Hacking Detections 4 | . 4 . Full Trace Events . | . . . Feedback Events . | . . . Feedback Blocked . | . . . Robot Schematics Acquired . | . . . Robots Built . | . . . Authchips . | . . . Time . | . . . Total Robot Build Rating . | . . . Part Schematics Acquired . | . . . Parts Built . | . . . Authchips . | . . . Time . | . . . Total Part Build Rating . | . . . Parts Repaired . | . . . Time . | . . . Parts Recycled . | . . . Recycled Matter . | . . . Retrieved Matter . | . . . Retrieved Components . | . . . Parts Scanalyzed . | . . . Part Schematics Acquired . | . . . Parts Damaged . | . . . Bothacking | -11 -10 -10 ------------ Run | Yrd Mat Sub Used RIF Installer . | . . . Robots Hacked 1 | . . 1 Non-combat 1 | . . 1 Combat . | . . . Robot Hacks Applied 2 | . . 2 parse_system 2 | . . 2 Relay Couplers Released . | . . . Fabnet Peak Effective % . | . . . Robots Rewired . | . . . Allies Hacked . | . . . Hacks Repelled . | . . . Allies | -11 -10 -10 -------- Run | Yrd Mat Sub Total Allies . | . . . Largest Group . | . . . Highest-Rated Group . | . . . Highest-Rated Ally . | . . . Total Orders . | . . . Ally Attacks . | . . . Total Damage . | . . . Kills . | . . . Allies Corrupted . | . . . Allies Melted . | . . . Intel | -11 -10 -10 ------- Run | Yrd Mat Sub Active Infowar (turns) 1087 | . 40 1047 Optics 702 | . . 702 Sensors 385 | . 40 345 Robot Analysis Total 1 | . 1 . Derelict Logs Recovered 1 | . . 1 Drone Launches . | . . . Drone Recoveries . | . . . Exploration | -11 -10 -10 ------------- Run | Yrd Mat Sub Turns Passed 3146 | 72 891 2183 Spaces Moved 1795 | 51 543 1201 Core 10 | 10 . . Treads 1199 | . . 1199 Legs 586 | 41 543 2 Wheels . | . . . Hover . | . . . Flight . | . . . Fastest Speed 50 | 50 120 120 Average Speed 146 | 106 120 159 Slowest Speed 160 | 120 120 160 Overloaded Moves . | . . . Propulsion Burnouts . | . . . Robots Hopped . | . . . Potential Cave-ins . | . . . Cave-ins Triggered . | . . . Exploration Rate (%) 46 | 4 76 58 Regions Visited 2 Branch Regions 1 Pre-discovered Areas 2 | . . 2 Known Exits Taken . | . . . Unknown Exits Taken 2 | 1 1 . Scrap Searched 3 | . . 3 Spaces Dug . | . . . Terrain Destroyed . | . . . Melee . | . . . Projectile . | . . . AOE . | . . . Terrain Rammed . | . . . Walls Destroyed . | . . . Machines Disabled . | . . . Actions | -11 -10 -10 --------- Run | Yrd Mat Sub Total 2137 | 68 710 1359 Wait 178 | . 111 67 Move 1793 | 50 542 1201 Hop . | . . . Pick Up 23 | 10 9 4 Fast Attach 2 | . 1 1 Attach 8 | 6 1 1 Detach . | . . . Swap 29 | 2 4 23 Drop 12 | . 5 7 Fire 74 | . 37 37 Melee 17 | . . 17 Ram . | . . . Kick . | . . . Crush . | . . . Escape Stasis . | . . . Rewire . | . . . Trap . | . . . Miscellaneous 1 | . . 1 Route ------- -11/Scrapyard -10/Materials (discovered 4 exits: [*Mat x2] / [*Min] / *Sub) -10/Subcaves (discovered 2 exits: [*Mat] / Rec) History --------- Turn | Location | Event 6 | -11/Scrapyard | Discovered new exit (range 16) 73 | -11/Scrapyard | Entered Materials 251 | -10/Materials | Discovered new exit (range 6) 302 | -10/Materials | Build established: Mutant 805 | -10/Materials | Discovered new exit (range 16) 889 | -10/Materials | Discovered new exit (range 16) 950 | -10/Materials | Discovered new exit (range 6) 964 | -10/Materials | Entered Subcaves 965 | -10/Subcaves | Approached by a straggling Scientist 966 | -10/Subcaves | Learned Materials garrison access intel 1156 | -10/Subcaves | Discovered new exit (range 15) 1525 | -10/Subcaves | Shifting Twisted Machinery released Sub. Machine Gun 1528 | -10/Subcaves | Shifting Twisted Machinery released Sub. Monowheel 1694 | -10/Subcaves | Released subatomizers from SUBCON Basin 1901 | -10/Subcaves | Learned location of Zion (-7) 1901 | -10/Subcaves | Met a Zionite searching for "candidates" 1935 | -10/Subcaves | Core integrity fell below 50% 2092 | -10/Subcaves | A swath of the cavern ceiling suddenly collapsed 2288 | -10/Subcaves | Visited 4L-MR0's lab 2767 | -10/Subcaves | Visited Clippyterm 2771 | -10/Subcaves | Identified exit to Recycling 2771 | -10/Subcaves | Learned location of Extension (-4) 3054 | -10/Subcaves | Shifting Twisted Machinery released Mak. Light Armor Plating 3089 | -10/Subcaves | Shifting Twisted Machinery released Sub. Laser 3134 | -10/Subcaves | Core integrity fell below 20% 3147 | -10/Subcaves | Destroyed by AG-E59(R) with Subdweller Machine Gun Last Messages --------------- >>Record! "Letterhead" It looks like you're writing a letter, sorry I don't know how to do that. >>Record! "Tab" It looks like you're biased against spaces, I think you need more help than I can offer. 02817_ Sub. Optics shoots sparks and powers down. 02897_ Sub. Power Source shoots sparks and powers down. Mak. Light Armor Plating falls loose from the Twisted Machinery. 03063_ Acquired 6 matter. 03068_ Acquired Mak. Light Armor Plating. 03069_ Dropped Broken Sub. Optics. 03070_ Acquired Sensor Array. Sub. Laser falls loose from the Twisted Machinery. 03119_ Dropped Broken Sub. Power Source. 03145_ Lgt. Treads destroyed. Map ----- +----------------------------------------------------+ | ????????????????????????????????????????????????? | | ????????????????????????????????????????????????# | | ??????????????????????????????????????????????## | | ?????????????????????????????????????????????## | | ?????????????????????????????????????????????# | | ????????????????????????????????????????????? | | ?????????????????????????????????????????????? | | ?????????????????????????????????????????????? | | ?????????????????????????????????????????????? | | ??????????????????????????????????????????????# # | | ??????????????????????????????????????????????# # | | ??????????????????????????????????????????????# # | | ???????????????????????####???????????????????# # | | ?????????????????????### ??????????????????## # | | ?????????????????????# # ?????????????????## | | ?????????????????????? ??????????????#### | | ?????????????????????? ?????????????## # | | ??????????????????????# ????????????## ] | | ?????????????????#????? R ????????????# "" | | ?????????????????# ????# ??????####?## ###""### | | ?????????????????# ???# ??????# #?# ##""#?? | | ?????????????????# ??# R#??????# ### "## ""#? | | ?????????????????# ## &###????# ## """ "##? | | ?????????????????# && ##???# ## ## "["#? | | ??????????????????# = ##??# ## ##?# """"#? | | ????????????????????# @ #### # ##?#""""?? | | ????????????????????# ## ###""" ?? | | ?????????????# * " " | | ?????????????# # # # | | ?????????????# ## ##### #?? | | ???????????? #######???# #### #?? | | ???????????? ### ?????????# ##????##?? | | ???????????? ???## ?????????####????????? | | ????????????? ##?????## #?????????????????????? | | ?????????????#?????????#####?????????????????????? | | ?????????????????????????????????????????????????? | | ?????????????????????????????????????????????????? | | ?????????????????????????????????????????????????? | | ?????????????????????????????????????????????????? | | ?????????????????????????????????????????????????? | | ?????????????????????????????????????????????????? | | ?????????????????????????????????????????????????? | | ?????????????????????????????????????????????????? | | ?????????????????????????????????????????????????? | | ?????????????????????????????????????????????????? | | ?????????????????????????????????????????????????? | | ?????????????????????????????????????????????????? | | ?????????????????????????????????????????????????? | | ?????????????????????????????????????????????????? | | | +----------------------------------------------------+ Best States ------------- Heat Dissipation 39 Energy Generation 15 Energy Capacity 250 Matter Stores 300 Matter Capacity 300 Sight Range 21 Robot Scan Range 14 Terrain Scan Density 10 Armor Coverage 150 Evasion (%) 55 Recoil Reduction 2 Item Schematics ----------------- None Robot Schematics ------------------ None Fabricated ------------ Nothing Repaired ---------- Nothing Alien Tech Used ----------------- None Achievements -------------- None Challenges ------------ None Game ------ Seed AdvancedSigixMinigun Manual? 0 Play Time 00:19:15 Cumulative 46.4 hours Start 2025.08.07 @ 14:22:18 End 2025.08.07 @ 14:39:18 Sessions 1 Manual Loads 0 Difficulty Rogue Special Mode None Game No. 32 Rogue 32 Adventurer 0 Explorer 0 Win Type - Total 1 Types 1/0/0/0/0/0/0/0/0/0 Lore% 44 Gallery% 36 Achievement% 34 Wizard Run 0 Options --------- Layout 1 ASCII 0 Keyboard 0 Movement Mouse Keybinds 0 Fullscreen 1 Font 24/Smallcaps Map View 50x35 Zoom Use 0% Tactical HUD 1 Map Filters NONE Filters NONE Steam 1 RUN: b8c6b0f3-2c2d-4488-96b2-eda605b28148